fUST/lending_fUST_20250730
["ID","MTS","AMOUNT","RATE_DAILY","PERIOD"]
[376094335,1753861833452,-1787.01904686,0.00018847,2]
[376094337,1753861833462,-460.0,0.00018848,2]
[376094339,1753861833472,-460.0,0.00018848,2]
[376094341,1753861833482,-460.0,0.00018848,2]
[376094343,1753861833492,-463.52755707,0.00018848,2]
[376094345,1753861833502,-460.0,0.00018848,2]
[376094347,1753861833512,-460.0,0.00018848,2]
[376094349,1753861833522,-460.0,0.00018848,2]
[376094351,1753861833531,-460.0,0.00018848,2]
[376094353,1753861833541,-460.0,0.00018848,2]
[376094355,1753861833551,-460.0,0.00018848,2]
[376094357,1753861833560,-507.93,0.00018848,2]
[376094359,1753861833570,-460.0,0.00018848,2]
[376094361,1753861833582,-460.0,0.00018848,2]
[376094363,1753861833593,-460.0,0.00018848,2]
[376094365,1753861833602,-460.0,0.00018848,2]
[376094367,1753861833612,-460.0,0.00018848,2]
[376094370,1753861833622,-460.0,0.00018848,2]
[376094371,1753861833632,-460.0,0.00018848,2]
[376094374,1753861833642,-460.0,0.00018848,2]
[376094375,1753861833651,-468.0312068,0.00018848,2]
[376094378,1753861833661,-460.0,0.00018848,2]
[376094380,1753861833671,-460.0,0.00018848,2]
[376094381,1753861833681,-534.48414293,0.00018848,2]
[376094383,1753861833690,-460.0,0.00018848,2]
[376094385,1753861833700,-460.0,0.00018848,2]
[376094388,1753861833710,-460.0,0.00018848,2]
[376094389,1753861833720,-460.0,0.00018848,2]
[376094391,1753861833729,-460.0,0.00018848,2]
[376094393,1753861833738,-460.0,0.00018848,2]
[376094394,1753861833748,-460.0,0.00018848,2]
[376094395,1753861833761,-460.0,0.00018848,2]
[376094396,1753861833771,-498.33,0.00018848,2]
[376094398,1753861833781,-460.0,0.00018848,2]
[376094399,1753861833791,-460.0,0.00018848,2]
[376094400,1753861833802,-460.0,0.00018848,2]
[376094401,1753861833812,-460.0,0.00018848,2]
[376094402,1753861833823,-460.0,0.00018848,2]
[376094403,1753861833839,-460.0,0.00018848,2]
[376094404,1753861833849,-460.0,0.00018848,2]
[376094405,1753861833859,-460.0,0.00018848,2]
[376094406,1753861833869,-460.0,0.00018848,2]
[376094407,1753861833879,-460.0,0.00018848,2]
[376094408,1753861833889,-460.0,0.00018848,2]
[376094409,1753861833899,-460.0,0.00018848,2]
[376094410,1753861833909,-460.0,0.00018848,2]
[376094411,1753861833919,-460.0,0.00018848,2]
[376094412,1753861833928,-460.0,0.00018848,2]
[376094413,1753861833938,-460.0,0.00018848,2]
[376094414,1753861833947,-163.75478617,0.00018848,2]
[376094415,1753861833957,-460.0,0.00018848,2]
[376094416,1753861833966,-460.0,0.00018848,2]
[376094417,1753861833976,-460.0,0.00018848,2]
[376094418,1753861833986,-460.0,0.00018848,2]
[376094419,1753861833995,-460.0,0.00018848,2]
[376094420,1753861834005,-460.0,0.00018849,2]
[376094421,1753861834015,-190.14742887,0.00018849,2]
[376094422,1753861834025,-460.0,0.00018849,2]
[376094423,1753861834034,-460.0,0.00018849,2]
[376094424,1753861834043,-460.0,0.00018849,2]
[376094425,1753861834053,-1174.19,0.00018849,2]
[376094426,1753861834063,-460.0,0.00018849,2]
[376094427,1753861834072,-460.0,0.00018849,2]
[376094428,1753861834085,-460.0,0.00018849,2]
[376094430,1753861834095,-460.0,0.00018849,2]
[376094431,1753861834105,-555.83,0.00018849,2]
[376094432,1753861834115,-460.0,0.00018849,2]
[376094434,1753861834125,-460.0,0.00018849,2]
[376094436,1753861834134,-460.0,0.00018849,2]
[376094437,1753861834144,-460.0,0.00018849,2]
[376094438,1753861834154,-830.98,0.00018849,2]
[376094440,1753861834165,-460.0,0.00018849,2]
[376094442,1753861834175,-460.0,0.00018849,2]
[376094443,1753861834185,-460.0,0.00018849,2]
[376094444,1753861834195,-460.0,0.00018849,2]
[376094446,1753861834205,-460.0,0.00018849,2]
[376094448,1753861834214,-479.66,0.00018849,2]
[376094450,1753861834224,-460.0,0.00018849,2]
[376094452,1753861834234,-460.0,0.00018849,2]
[376094454,1753861834244,-596.02,0.00018849,2]
[376094456,1753861834253,-460.0,0.00018849,2]
[376094458,1753861834263,-615.74,0.00018849,2]
[376094460,1753861834272,-460.0,0.00018849,2]
[376094462,1753861834282,-501.43,0.00018849,2]
[376094464,1753861834292,-460.0,0.00018849,2]
[376094466,1753861834301,-462.89,0.00018849,2]
[376094468,1753861834311,-460.0,0.0001885,2]
[376094470,1753861834321,-460.0,0.0001885,2]
[376094472,1753861834332,-578.14,0.0001885,2]
[376094474,1753861834341,-150.0,0.000189,2]
[376094476,1753861834351,-367.38959,0.0001912,2]
[376094478,1753861834361,-460.0,0.0001912,2]
[376094480,1753861834371,-258.84,0.00019121,2]
[376094482,1753861834380,-169.54,0.00019121,2]
[376094484,1753861834390,-460.0,0.00019121,2]
[376094486,1753861834400,-460.0,0.00019121,2]
[376094488,1753861834410,-460.0,0.00019121,2]
[376094490,1753861834419,-507.61,0.00019121,2]
[376094492,1753861834429,-460.0,0.00019121,2]
[376094494,1753861834439,-249.48,0.00019121,2]
[376094496,1753861834449,-463.17,0.00019121,2]
[376094498,1753861834459,-283.85,0.00019121,2]
[376094500,1753861834469,-251.25,0.00019121,2]
[376094502,1753861834479,-460.0,0.00019121,2]
[376094504,1753861834489,-202.57,0.00019121,2]
[376094506,1753861834498,-511.03,0.00019121,2]
[376094508,1753861834508,-460.1,0.00019121,2]
[376094510,1753861834529,-444.17,0.00019121,2]
[376094511,1753861834540,-460.0,0.00019121,2]
[376094514,1753861834550,-489.03,0.00019121,2]
[376094516,1753861834560,-482.83,0.00019121,2]
[376094517,1753861834569,-225.79,0.00019121,2]
[376094520,1753861834582,-460.0,0.00019121,2]
[376094521,1753861834592,-460.0,0.00019121,2]
[376094524,1753861834603,-460.0,0.00019122,2]
[376094526,1753861834612,-204.59,0.00019122,2]
[376094528,1753861834621,-494.03,0.00019122,2]
[376094530,1753861834631,-173.46524171,0.00019122,2]
[376094532,1753861834640,-200.01,0.00019122,2]
[376094533,1753861834650,-601.12,0.00019122,2]
[376094535,1753861834659,-460.0,0.00019122,2]
[376094537,1753861834669,-460.0,0.00019122,2]
[376094539,1753861834679,-460.0,0.00019122,2]
[376094541,1753861834688,-1174.19,0.00019123,2]
[376094543,1753861834698,-156.27,0.00019123,2]
[376094545,1753861834707,-460.0,0.00019123,2]
[376094547,1753861834717,-830.98,0.00019123,2]
[376094549,1753861834727,-460.0,0.00019123,2]
[376094551,1753861834736,-460.0,0.00019123,2]
[376094553,1753861834746,-460.0,0.00019123,2]
[376094555,1753861834760,-239.77,0.00019123,2]
[376094557,1753861834769,-266.92,0.00019123,2]
[376094559,1753861834780,-259.89,0.00019123,2]
[376094561,1753861834789,-460.0,0.00019123,2]
[376094564,1753861834807,-596.02,0.00019123,2]
[376094567,1753861834820,-615.74,0.00019123,2]
[376094569,1753861834831,-501.43,0.00019123,2]
[376094571,1753861834841,-204.07,0.00019123,2]
[376094573,1753861834851,-460.0,0.00019124,2]
[376094575,1753861834861,-578.14,0.00019124,2]
[376094577,1753861834870,-200.0,0.00019223,15]
[376094579,1753861834880,-200.0,0.00019223,15]
[376094580,1753861834891,-200.0,0.00019223,15]
[376094582,1753861834900,-200.0,0.00019223,15]
[376094584,1753861834911,-200.0,0.00019223,15]
[376094586,1753861834921,-200.0,0.00019223,15]
[376094587,1753861834930,-200.0,0.00019223,15]
[376094588,1753861834940,-200.0,0.00019223,15]
[376094590,1753861834950,-200.0,0.00019223,15]
[376094592,1753861834960,-200.0,0.00019223,15]
[376094594,1753861834970,-200.0,0.00019223,15]
[376094596,1753861834980,-200.0,0.00019223,15]
[376094598,1753861834990,-200.0,0.00019223,15]
[376094600,1753861835001,-200.0,0.00019223,15]
[376094602,1753861835010,-200.0,0.00019223,15]
[376094604,1753861835020,-200.0,0.00019223,15]
[376094606,1753861835030,-500.0,0.00019252,2]
[376094608,1753861835041,-500.0,0.00019252,2]
[376094610,1753861835051,-502.61642722,0.00019254,2]
[376094612,1753861835060,-500.0,0.00019254,2]
[376094614,1753861835071,-500.0,0.00019254,2]
[376094616,1753861835082,-500.0,0.00019254,2]
[376094618,1753861835092,-502.07853402,0.00019254,2]
[376094620,1753861835102,-514.09427306,0.00019254,2]
[376094623,1753861835112,-500.0,0.00019254,2]
[376094624,1753861835121,-500.0,0.00019254,2]
[376094627,1753861835131,-604.06271584,0.00019254,2]
[376094628,1753861835141,-501.67500468,0.00019254,2]
[376094630,1753861835151,-500.0,0.00019268,2]
[376094632,1753861835161,-36.55077657,0.00019268,2]
[376095014,1753861838995,-463.44922343,0.00019268,2]
[376095016,1753861839004,-500.0,0.00019268,2]
[376095018,1753861839015,-500.65065341,0.00019275,2]
[376095020,1753861839025,-500.0,0.00019275,2]
[376095022,1753861839035,-501.57607859,0.00019355,2]
[376095024,1753861839044,-460.0,0.00019394,2]
[376095026,1753861839053,-292.07722654,0.00019395,2]
[376095028,1753861839063,-507.61,0.00019395,2]
[376095030,1753861839072,-460.0,0.00019395,2]
[376095032,1753861839083,-460.0,0.00019395,2]
[376095034,1753861839092,-460.1,0.00019395,2]
[376095036,1753861839101,-460.0,0.00019395,2]
[376095038,1753861839113,-150.06,0.00019395,2]
[376095040,1753861839122,-460.0,0.00019395,2]
[376095042,1753861839132,-460.0,0.00019396,2]
[376095044,1753861839141,-460.0,0.00019396,2]
[376095046,1753861839151,-1174.19,0.00019397,2]
[376095048,1753861839160,-460.0,0.00019397,2]
[376095050,1753861839170,-830.98,0.00019397,2]
[376095052,1753861839179,-181.81,0.00019397,2]
[376095054,1753861839189,-350.57,0.00019397,2]
[376095056,1753861839199,-460.0,0.00019397,2]
[376095058,1753861839209,-596.02,0.00019397,2]
[376095060,1753861839218,-615.74,0.00019397,2]
[376095062,1753861839228,-501.43,0.00019397,2]
[376095064,1753861839238,-460.0,0.00019398,2]
[376095066,1753861839247,-578.14,0.00019398,2]
[376095069,1753861839258,-631.73161909,0.00019406,2]
[376095071,1753861839267,-151.0,0.00019593,2]
[376095073,1753861839276,-151.0,0.00019593,2]
[376095075,1753861839286,-151.0,0.00019593,2]
[376095077,1753861839296,-151.0,0.00019593,2]
[376095079,1753861839306,-151.0,0.00019593,2]
[376095081,1753861839315,-151.0,0.00019593,2]
[376095083,1753861839325,-151.0,0.00019593,2]
[376095085,1753861839338,-151.0,0.00019593,2]
[376095087,1753861839347,-151.0,0.00019593,2]
[376095089,1753861839357,-151.0,0.00019593,2]
[376095091,1753861839367,-151.0,0.00019593,2]
[376095093,1753861839376,-151.0,0.00019593,2]
[376095095,1753861839386,-151.0,0.00019593,2]
[376095097,1753861839397,-151.0,0.00019593,2]
[376095099,1753861839407,-151.0,0.00019593,2]
[376095101,1753861839418,-151.0,0.00019593,2]
[376095103,1753861839427,-151.0,0.00019593,2]
[376095105,1753861839437,-151.0,0.00019593,2]
[376095107,1753861839447,-151.0,0.00019593,2]
[376095109,1753861839456,-151.0,0.00019593,2]
[376095111,1753861839466,-460.0,0.00019668,2]
[376095113,1753861839476,-507.61,0.00019669,2]
[376095115,1753861839485,-361.76360977,0.00019669,2]
[376095117,1753861839495,-460.0,0.00019669,2]
[376095119,1753861839505,-460.1,0.00019669,2]
[376095121,1753861839515,-460.0,0.00019669,2]
[376095123,1753861839524,-460.0,0.00019669,2]
[376095125,1753861839534,-460.0,0.0001967,2]
[376095127,1753861839544,-460.0,0.0001967,2]
[376095129,1753861839553,-1174.19,0.00019671,2]
[376095131,1753861839563,-460.0,0.00019671,2]
[376095133,1753861839572,-830.98,0.00019671,2]
[376095135,1753861839584,-460.0,0.00019671,2]
[376095137,1753861839593,-596.02,0.00019671,2]
[376095139,1753861839603,-615.74,0.00019671,2]
[376095141,1753861839612,-501.43,0.00019671,2]
[376095143,1753861839622,-460.0,0.00019672,2]
[376095145,1753861839632,-578.14,0.00019672,2]
[376095147,1753861839642,-501.31460294,0.000198,2]
[376095149,1753861839651,-636.20850914,0.000198,2]
[376095151,1753861839661,-987.43394551,0.00019802,2]
[376095153,1753861839670,-1000.0,0.00019802,2]
[376095155,1753861839682,-500.0,0.00019802,2]
[376095157,1753861839691,-500.0,0.00019816,2]
[376095159,1753861839702,-556.76521702,0.00019816,2]
[376095161,1753861839712,-572.44576117,0.00019823,2]
[376095163,1753861839722,-1000.27161453,0.00019845,2]
[376095165,1753861839731,-3034.35229811,0.000199,2]
[376095167,1753861839740,-460.0,0.00019942,2]
[376095169,1753861839749,-507.61,0.00019943,2]
[376095171,1753861839765,-460.0,0.00019943,2]
[376095173,1753861839774,-460.1,0.00019943,2]
[376095188,1753861839894,-460.0,0.00019943,2]
[376095190,1753861839920,-460.0,0.00019943,2]
[376095192,1753861839930,-510.08,0.00019944,2]
[376095194,1753861839939,-460.0,0.00019944,2]
[376095196,1753861839948,-1174.19,0.00019945,2]
[376095198,1753861839958,-460.0,0.00019945,2]
[376095200,1753861839967,-830.98,0.00019945,2]
[376095202,1753861839977,-460.0,0.00019945,2]
[376095204,1753861839988,-596.02,0.00019945,2]
[376095206,1753861839997,-615.74,0.00019945,2]
[376095208,1753861840007,-501.43,0.00019945,2]
[376095210,1753861840017,-460.0,0.00019946,2]
[376095212,1753861840027,-578.14,0.00019946,2]
[376095214,1753861840036,-160.0,0.00020003,2]
[376095216,1753861840045,-3534.53373848,0.00020003,2]
[376095219,1753861840058,-4533.80382641,0.00020003,2]
[376095221,1753861840069,-752.55185998,0.00020003,2]
[376095223,1753861840081,-3020.19971419,0.00020003,2]
[376095225,1753861840093,-798.48862484,0.00020003,2]
[376095227,1753861840102,-214.95885286,0.00020003,2]
[376095229,1753861840111,-216.14611358,0.00020003,2]
[376095231,1753861840121,-160.0,0.00020003,2]
[376095233,1753861840131,-841.2246943,0.00020003,2]
[376095235,1753861840140,-160.0,0.00020003,2]
[376095237,1753861840149,-231.43925844,0.00020003,2]
[376095239,1753861840158,-160.0,0.00020003,2]
[376095241,1753861840167,-361.92559151,0.00020003,2]
[376095244,1753861840185,-460.0,0.00018849,2]
[376095246,1753861840194,-164.83559062,0.00020003,2]
[376095248,1753861840204,-160.0,0.00020031,2]
[376095250,1753861840214,-3034.35229805,0.00020141,2]
[376095252,1753861840223,-205.142468,0.00020187,2]
[376095254,1753861840234,-460.0,0.00020216,2]
[376095256,1753861840243,-507.61,0.00020217,2]
[376095258,1753861840253,-460.0,0.00020217,2]
[376095260,1753861840262,-460.1,0.00020217,2]
[376095262,1753861840271,-460.0,0.00020217,2]
[376095264,1753861840281,-460.0,0.00020217,2]
[376095266,1753861840290,-475.96,0.00020218,2]
[376095268,1753861840299,-1174.19,0.00020219,2]
[376095270,1753861840308,-460.0,0.00020219,2]
[376095272,1753861840318,-830.98,0.00020219,2]
[376095274,1753861840327,-460.0,0.00020219,2]
[376095276,1753861840339,-596.02,0.00020219,2]
[376095278,1753861840348,-615.74,0.00020219,2]
[376095280,1753861840357,-501.43,0.00020219,2]
[376095282,1753861840367,-460.0,0.0002022,2]
[376095284,1753861840376,-578.14,0.0002022,2]
[376095286,1753861840386,-241.23808633,0.00020349,2]
[376095288,1753861840395,-3034.35229805,0.00020383,3]
[376095290,1753861840405,-460.0,0.0002049,2]
[376095292,1753861840414,-507.61,0.00020491,2]
[376095294,1753861840423,-460.0,0.00020491,2]
[376095296,1753861840433,-460.1,0.00020491,2]
[376095298,1753861840442,-460.0,0.00020491,2]
[376095300,1753861840452,-460.0,0.00020491,2]
[376095302,1753861840461,-1174.19,0.00020493,2]
[376095304,1753861840471,-460.0,0.00020493,2]
[376095306,1753861840480,-830.98,0.00020493,2]
[376095309,1753861840491,-460.0,0.00020493,2]
[376095311,1753861840503,-596.02,0.00020493,2]
[376095313,1753861840513,-615.74,0.00020493,2]
[376095315,1753861840523,-501.43,0.00020493,2]
[376095317,1753861840532,-460.0,0.00020494,2]
[376095319,1753861840542,-578.14,0.00020494,2]
[376095321,1753861840552,-420.0,0.00020544,2]
[376095323,1753861840561,-260.0,0.00020579,2]
[376095325,1753861840571,-3034.35229805,0.00020624,3]
[376095327,1753861840582,-1027.21494325,0.00020665,2]
[376095328,1753861840592,-460.0,0.00020764,2]
[376095331,1753861840601,-507.61,0.00020765,2]
[376095332,1753861840611,-460.0,0.00020765,2]
[376095334,1753861840620,-460.1,0.00020765,2]
[376095337,1753861840629,-460.0,0.00020765,2]
[376095339,1753861840639,-194.13,0.00020765,2]
[376095340,1753861840648,-1174.19,0.00020767,2]
[376095343,1753861840659,-460.0,0.00020767,2]
[376095345,1753861840668,-830.98,0.00020767,2]
[376095346,1753861840678,-460.0,0.00020767,2]
[376095348,1753861840688,-596.02,0.00020767,2]
[376095350,1753861840697,-615.74,0.00020767,2]
[376095352,1753861840707,-501.43,0.00020767,2]
[376095354,1753861840717,-460.0,0.00020768,2]
[376095356,1753861840727,-578.14,0.00020768,2]
[376095359,1753861840736,-3034.35229805,0.00020866,4]
[376095360,1753861840745,-1000.27161453,0.00020942,2]
[376095361,1753861840756,-17894.90166323,0.00020944,3]
[376095362,1753861840768,-12639.5777639,0.00020944,3]
[376095363,1753861840777,-460.0,0.00021038,2]
[376095364,1753861840786,-507.61,0.00021039,2]
[376095365,1753861840795,-460.0,0.00021039,2]
[376095366,1753861840806,-460.1,0.00021039,2]
[376095367,1753861840815,-580.73942877,0.00021039,2]
[376095368,1753861840824,-1174.19,0.00021041,2]
[376095369,1753861840835,-460.0,0.00021041,2]
[376095370,1753861840845,-830.98,0.00021041,2]
[376095372,1753861840855,-460.0,0.00021041,2]
[376095373,1753861840864,-596.02,0.00021041,2]
[376095375,1753861840874,-615.74,0.00021041,2]
[376095377,1753861840883,-501.43,0.00021041,2]
[376095379,1753861840893,-460.0,0.00021042,2]
[376095381,1753861840902,-578.14,0.00021042,2]
[376095383,1753861840912,-3034.35229805,0.00021107,4]
[376095385,1753861840921,-200.0,0.00021109,15]
[376095387,1753861840931,-200.0,0.00021109,15]
[376095389,1753861840945,-200.0,0.00021109,15]
[376095391,1753861840955,-200.0,0.00021109,15]
[376095393,1753861840965,-200.0,0.00021109,15]
[376095395,1753861840974,-200.0,0.00021109,15]
[376095397,1753861840984,-200.0,0.00021109,15]
[376095399,1753861840994,-200.0,0.00021109,15]
[376095401,1753861841003,-200.0,0.00021109,15]
[376095403,1753861841012,-200.0,0.00021109,15]
[376095405,1753861841022,-200.0,0.00021109,15]
[376095407,1753861841031,-200.0,0.00021109,15]
[376095409,1753861841041,-200.0,0.00021109,15]
[376095411,1753861841052,-200.0,0.00021109,15]
[376095413,1753861841061,-200.0,0.00021109,15]
[376095415,1753861841071,-200.0,0.00021109,15]
[376095417,1753861841083,-200.0,0.00021109,15]
[376095419,1753861841093,-200.0,0.00021109,15]
[376095421,1753861841103,-200.0,0.00021109,15]
[376095423,1753861841112,-200.0,0.00021109,15]
[376095425,1753861841121,-200.0,0.00021109,15]
[376095427,1753861841131,-280.0,0.00021109,15]
[376095429,1753861841140,-360.0,0.00021127,2]
[376095431,1753861841149,-1027.21494323,0.00021146,2]
[376095433,1753861841159,-279.5224831,0.00021163,2]
[376095435,1753861841168,-338.40500601,0.00021166,2]
[376095437,1753861841178,-460.0,0.00021312,2]
[376095439,1753861841187,-507.61,0.00021313,2]
[376095441,1753861841196,-460.0,0.00021313,2]
[376095443,1753861841209,-460.1,0.00021313,2]
[376095445,1753861841218,-1174.19,0.00021315,2]
[376095447,1753861841228,-460.0,0.00021315,2]
[376095449,1753861841237,-830.98,0.00021315,2]
[376095451,1753861841246,-460.0,0.00021315,2]
[376095453,1753861841255,-596.02,0.00021315,2]
[376095455,1753861841265,-615.74,0.00021315,2]
[376095457,1753861841274,-501.43,0.00021315,2]
[376095459,1753861841284,-460.0,0.00021316,2]
[376095461,1753861841293,-578.14,0.00021316,2]
[376095463,1753861841303,-3034.35229805,0.00021348,5]
[376095465,1753861841312,-4121.39056973,0.00021399,2]
[376095467,1753861841322,-162.0,0.000214,7]
[376095469,1753861841332,-501.02742172,0.00021473,2]
[376095471,1753861841341,-500.0,0.00021473,2]
[376095472,1753861841351,-337.25315508,0.00021473,2]
[376095473,1753861841361,-500.0,0.00021473,2]
[376095474,1753861841370,-500.0,0.00021473,2]
[376095475,1753861841380,-500.0,0.00021473,2]
[376095476,1753861841390,-505.10273347,0.00021473,2]
[376095477,1753861841399,-500.0,0.00021473,2]
[376095478,1753861841409,-500.0,0.00021473,2]
[376095479,1753861841419,-500.0,0.00021473,2]
[376095480,1753861841428,-506.76482346,0.00021473,2]
[376095481,1753861841437,-501.15255493,0.00021473,2]
[376095482,1753861841447,-502.7522944,0.00021473,2]
[376095483,1753861841456,-500.0,0.00021473,2]
[376095484,1753861841466,-500.0,0.00021473,2]
[376095485,1753861841475,-500.0,0.00021473,2]
[376095486,1753861841485,-500.0,0.00021473,2]
[376095487,1753861841495,-226.36388906,0.00021473,2]
[376095488,1753861841504,-501.29507856,0.00021473,2]
[376095489,1753861841514,-500.67139671,0.00021473,2]
[376095490,1753861841524,-500.0,0.00021473,2]
[376095491,1753861841533,-500.0,0.00021473,2]
[376095492,1753861841543,-500.0,0.00021473,2]
[376095493,1753861841552,-500.0,0.00021473,2]
[376095494,1753861841562,-500.0,0.00021473,2]
[376095495,1753861841571,-500.0,0.00021473,2]
[376095496,1753861841581,-501.2416567,0.00021473,2]
[376095497,1753861841590,-500.0,0.00021473,2]
[376095498,1753861841600,-501.38271662,0.00021473,2]
[376095499,1753861841610,-1000.0,0.00021479,2]
[376095500,1753861841619,-1000.0,0.00021479,2]
[376095501,1753861841628,-1000.0,0.00021479,2]
[376095502,1753861841638,-1000.0,0.00021479,2]
[376095503,1753861841647,-1000.0,0.00021479,2]
[376095504,1753861841657,-1000.0,0.00021479,2]
[376095505,1753861841666,-1000.0,0.00021479,2]
[376095506,1753861841675,-1000.0,0.00021479,2]
[376095507,1753861841685,-1000.0,0.00021479,2]
[376095508,1753861841694,-1000.0,0.00021479,2]
[376095509,1753861841704,-1000.0,0.00021479,2]
[376095510,1753861841713,-1000.0,0.00021479,2]
[376095511,1753861841723,-1000.0,0.00021479,2]
[376095512,1753861841732,-215.8,0.00021479,2]
[376095513,1753861841741,-500.0,0.00021499,2]
[376095514,1753861841751,-500.0,0.00021499,2]
[376095517,1753861841772,-164.33151602,0.00021499,2]
[376095518,1753861841786,-559.76303933,0.00021499,2]
[376095520,1753861841795,-500.0,0.00021499,2]
[376095523,1753861841807,-500.0,0.00021499,2]
[376095524,1753861841816,-634.75194978,0.00021499,2]
[376095526,1753861841826,-375.844842,0.00021499,2]
[376095528,1753861841839,-500.0,0.00021499,2]
[376095530,1753861841848,-500.0,0.00021499,2]
[376095532,1753861841858,-500.0,0.00021499,2]
[376095534,1753861841867,-604.15341064,0.00021499,2]
[376095536,1753861841876,-500.0,0.00021499,2]
[376095538,1753861841886,-500.0,0.00021499,2]
[376095540,1753861841895,-500.0,0.00021499,2]
[376095542,1753861841904,-500.0,0.00021499,2]
[376095544,1753861841913,-500.0,0.00021499,2]
[376095546,1753861841923,-385.5605899,0.00021499,2]
[376095548,1753861841932,-214.09503225,0.00021499,2]
[376095550,1753861841942,-627.32653919,0.00021499,2]
[376095552,1753861841951,-121373.9,0.000215,2]
[376095554,1753861841961,-277185.13,0.000215,2]
[376095556,1753861841971,-460.0,0.00021586,2]
[376095558,1753861841980,-507.61,0.00021587,2]
[376095560,1753861841990,-460.0,0.00021587,2]
[376095562,1753861842001,-460.1,0.00021587,2]
[376095564,1753861842010,-1174.19,0.00021589,2]
[376095566,1753861842020,-460.0,0.00021589,2]
[376095568,1753861842029,-830.98,0.00021589,2]
[376095570,1753861842038,-460.0,0.00021589,2]
[376095572,1753861842047,-596.02,0.00021589,2]
[376095574,1753861842057,-615.74,0.00021589,2]
[376095576,1753861842066,-501.43,0.00021589,2]
[376095578,1753861842076,-3034.35229805,0.0002159,5]
[376095580,1753861842087,-460.0,0.0002159,2]
[376095582,1753861842096,-578.14,0.0002159,2]
[376095584,1753861842106,-1027.21494323,0.00021627,2]
[376095586,1753861842115,-460.0,0.00021675,2]
[376095588,1753861842124,-115188.79301368,0.00021739,2]
[376095590,1753861842134,-510.477,0.0002175,2]
[376095592,1753861842143,-500.0,0.00021773,2]
[376095594,1753861842153,-500.0,0.00021773,2]
[376095596,1753861842162,-501.95115213,0.00021773,2]
[376095598,1753861842172,-3034.35229805,0.00021831,6]
[376095600,1753861842181,-460.0,0.0002186,2]
[376095602,1753861842191,-507.61,0.00021861,2]
[376095604,1753861842200,-460.0,0.00021861,2]
[376095606,1753861842209,-460.1,0.00021861,2]
[376095608,1753861842218,-1174.19,0.00021863,2]
[376095610,1753861842228,-460.0,0.00021863,2]
[376095612,1753861842237,-830.98,0.00021863,2]
[376095614,1753861842247,-460.0,0.00021863,2]
[376095616,1753861842256,-596.02,0.00021863,2]
[376095618,1753861842265,-615.74,0.00021863,2]
[376095620,1753861842275,-501.43,0.00021863,2]
[376095622,1753861842284,-460.0,0.00021864,2]
[376095624,1753861842293,-578.14,0.00021864,2]
[376095626,1753861842303,-150.95560251,0.00021918,2]
[376095628,1753861842312,-500.0,0.00021973,2]
[376095629,1753861842322,-455.94386015,0.00021973,2]
[376095631,1753861842331,-161.86565959,0.00021973,2]
[376095633,1753861842341,-500.0,0.00021973,2]